fUST/lending_fUST_20250727
["ID","MTS","AMOUNT","RATE_DAILY","PERIOD"]
[375267539,1753607451385,-460.0,0.0002,2]
[375267540,1753607451395,-2109.51,0.0002,2]
[375267541,1753607451404,-460.0,0.0002,2]
[375267542,1753607451413,-460.0,0.0002,2]
[375267543,1753607451423,-664.41,0.0002,2]
[375267544,1753607451432,-460.0,0.0002,2]
[375267545,1753607451442,-460.0,0.0002,2]
[375267546,1753607451451,-460.0,0.0002,2]
[375267547,1753607451461,-460.0,0.0002,2]
[375267548,1753607451471,-460.0,0.0002,2]
[375267549,1753607451480,-163.03067376,0.0002,2]
[375267550,1753607451489,-460.0,0.0002,2]
[375267551,1753607451499,-460.0,0.0002,2]
[375267552,1753607451508,-460.0,0.0002,2]
[375267553,1753607451518,-712.42,0.0002,2]
[375267554,1753607451527,-1726.36,0.0002,2]
[375267555,1753607451536,-460.0,0.0002,2]
[375267556,1753607451546,-464.24773841,0.0002,2]
[375267557,1753607451555,-1083.81,0.0002,2]
[375267558,1753607451564,-1662.78,0.0002,2]
[375267559,1753607451574,-763.04,0.0002,2]
[375267560,1753607451583,-460.0,0.0002,2]
[375267561,1753607451593,-460.0,0.0002,2]
[375267562,1753607451602,-460.0,0.0002,2]
[375267563,1753607451612,-437.06,0.0002,2]
[375267564,1753607451622,-460.0,0.0002,2]
[375267565,1753607451632,-590.12,0.0002,2]
[375267566,1753607451641,-460.0,0.0002,2]
[375267567,1753607451651,-460.0,0.0002,2]
[375267568,1753607451661,-460.0,0.0002,2]
[375267569,1753607451671,-460.0,0.0002,2]
[375267570,1753607451680,-460.0,0.0002,2]
[375267571,1753607451690,-460.0,0.0002,2]
[375267572,1753607451699,-530.45,0.0002,2]
[375267573,1753607451709,-1703.25,0.0002,2]
[375267574,1753607451718,-1703.25,0.0002,2]
[375267575,1753607451728,-460.0,0.0002,2]
[375267576,1753607451737,-1941.23,0.0002,2]
[375267577,1753607451746,-460.0,0.0002,2]
[375267578,1753607451756,-460.0,0.0002,2]
[375267579,1753607451767,-460.0,0.0002,2]
[375267580,1753607451776,-681.54,0.0002,2]
[375267581,1753607451786,-460.0,0.0002,2]
[375267582,1753607451795,-460.0,0.0002,2]
[375267583,1753607451805,-460.0,0.0002,2]
[375267584,1753607451815,-460.0,0.0002,2]
[375267585,1753607451824,-460.0,0.0002,2]
[375267586,1753607451833,-953.57,0.0002,2]
[375267587,1753607451843,-755.61,0.0002,2]
[375267588,1753607451853,-460.0,0.0002,2]
[375267589,1753607451863,-460.0,0.0002,2]
[375267590,1753607451873,-460.0,0.0002,2]
[375267591,1753607451883,-460.0,0.0002,2]
[375267592,1753607451893,-460.0,0.0002,2]
[375267593,1753607451902,-460.0,0.0002,2]
[375267594,1753607451912,-460.0,0.0002,2]
[375267595,1753607451922,-460.0,0.0002,2]
[375267596,1753607451931,-429.9863832,0.00020027,2]
[375267597,1753607451940,-429.9863832,0.00020027,2]
[375267598,1753607451950,-429.9863832,0.00020027,2]
[375267599,1753607451960,-429.9863832,0.00020027,2]
[375267600,1753607451970,-429.9863832,0.00020027,2]
[375267601,1753607451979,-863.4633861,0.00020027,2]
[375267602,1753607451989,-153.0,0.00020027,2]
[375267603,1753607451999,-688.62001584,0.00020037,2]
[375267604,1753607452008,-151.0,0.000201,4]
[375267605,1753607452018,-151.0,0.000201,4]
[375267606,1753607452027,-540.99,0.00020135,2]
[375267607,1753607452036,-1081.23578893,0.00020176,2]
[375267608,1753607452046,-312.555065,0.00020187,2]
[375267609,1753607452056,-151.0,0.000202,4]
[375267610,1753607452065,-160.0,0.00020227,2]
[375267611,1753607452074,-160.7173888,0.00020227,2]
[375267612,1753607452084,-334.67545577,0.00020227,2]
[375267613,1753607452093,-1879.40686476,0.00020259,2]
[375267615,1753607474543,150.0,0.00018812,2]
[375267618,1753607555192,150.0,0.0001883,2]
[375267621,1753607717174,150.0,0.0001879,2]
[375267622,1753607798032,150.0,0.00018609,2]
[375267624,1753607826692,193.83881237,0.00018602,2]
[375267625,1753607886503,150.0,0.00018609,2]
[375267626,1753607925806,474.45556925,0.00018321,2]
[375267627,1753607927526,1897.822277,0.00018321,2]
[375267628,1753607929586,2248.45033243,0.00018321,2]
[375267629,1753607929609,2021.64979082,0.00018321,2]
[375267630,1753607931284,3744.26066396,0.0001885,2]
[375267631,1753607931778,7583.69781889,0.00018321,2]
[375267632,1753607947206,1739.84224694,0.0001885,2]
[375267633,1753607973474,150.0,0.00018656,2]
[375267634,1753608053835,150.0,0.00018666,2]
[375267635,1753608060206,205.868259,0.00018177,2]
[375267655,1753608129010,210.61848336,0.000186,2]
[375267656,1753608137699,150.0,0.00018662,2]
[375267657,1753608156067,1000.0,0.00026027,120]
[375267658,1753608221265,150.0,0.00018657,2]
[375267683,1753608353091,-525.53592312,0.000189,2]
[375267684,1753608353113,-1178.22903817,0.00019078,2]
[375267685,1753608353134,-759.56,0.00019168,3]
[375267686,1753608353158,-150.0,0.00019172,2]
[375267687,1753608353179,-229.32766538,0.00019173,2]
[375267689,1753608384929,336.235314,0.00013699,2]
[375267690,1753608384960,150.0,0.00018684,2]
[375267692,1753608434076,-208.10849459,0.00019075,2]
[375267693,1753608434097,-648.20242312,0.00019078,2]
[375267694,1753608434119,-86.35644159,0.00019175,2]
[375267695,1753608443089,-213.64355841,0.00019175,2]
[375267696,1753608443110,-300.0,0.00019176,2]
[375267697,1753608443133,-300.0,0.00019176,2]
[375267698,1753608443154,-1200.0,0.00019176,2]
[375267699,1753608443174,-741.85399315,0.00019176,2]
[375267701,1753608465845,150.0,0.00018718,2]
[375267702,1753608471887,2976.22015238,0.00018,2]
[375267703,1753608543579,150.0,0.00018766,2]
[375267736,1753608632217,-350.35728208,0.000189,2]
[375267738,1753608632227,-78.78271792,0.00019078,2]
[375267744,1753608632272,-863.8005126,0.00019078,2]
[375267745,1753608632281,-500.0,0.00019173,2]
[375267746,1753608632291,-186.14600685,0.00019176,2]
[375267747,1753608632300,-538.0,0.00019176,2]
[375267748,1753608632310,-300.0,0.00019176,2]
[375267750,1753608632320,-241.51730764,0.00019177,2]
[375267751,1753608632330,-518.05824144,0.00019177,2]
[375267752,1753608632339,-609.09294356,0.00019177,2]
[375267753,1753608632349,-606.50145179,0.00019177,2]
[375267755,1753608632359,-500.0,0.00019177,2]
[375267756,1753608632368,-575.13412577,0.00019177,2]
[375267758,1753608632378,-500.0,0.00019177,2]
[375267760,1753608632388,-500.0,0.00019177,2]
[375267762,1753608632397,-460.0,0.00019178,2]
[375267764,1753608632407,-1000.0,0.00019178,2]
[375267767,1753608632419,-460.0,0.00019178,2]
[375267768,1753608632428,-156.92302599,0.00019178,2]
[375267769,1753608632442,-303.07697401,0.00019178,2]
[375267770,1753608632452,-460.0,0.00019178,2]
[375267771,1753608632462,-460.0,0.00019178,2]
[375267772,1753608632472,-460.0,0.00019178,2]
[375267773,1753608632481,-504.10091007,0.00019178,2]
[375267774,1753608632491,-339.47919734,0.00019178,2]
[375267775,1753608632501,-460.0,0.00019178,2]
[375267776,1753608632510,-408.69131417,0.00019178,2]
[375267777,1753608632520,-460.0,0.00019178,2]
[375267778,1753608632529,-465.71847164,0.00019178,2]
[375267779,1753608632539,-460.0,0.00019178,2]
[375267780,1753608632549,-460.0,0.00019178,2]
[375267781,1753608632559,-460.0,0.00019178,2]
[375267782,1753608632570,-500.0,0.00019178,2]
[375267783,1753608632580,-500.0,0.00019178,2]
[375267784,1753608632589,-470.96584799,0.00019178,2]
[375267785,1753608632599,-460.0,0.00019178,2]
[375267786,1753608632608,-460.0,0.00019178,2]
[375267787,1753608632618,-460.0,0.00019178,2]
[375267788,1753608632627,-460.0,0.00019178,2]
[375267789,1753608632636,-460.0,0.00019178,2]
[375267790,1753608632646,-460.0,0.00019178,2]
[375267792,1753608632655,-460.53977199,0.00019178,2]
[375267794,1753608632667,-460.0,0.00019178,2]
[375267795,1753608632677,-460.0,0.00019178,2]
[375267796,1753608632687,-460.0,0.00019178,2]
[375267797,1753608632697,-460.0,0.00019178,2]
[375267798,1753608632706,-464.5360767,0.00019178,2]
[375267799,1753608632716,-460.0,0.00019178,2]
[375267800,1753608632725,-460.0,0.00019178,2]
[375267801,1753608632734,-460.0,0.00019178,2]
[375267802,1753608632744,-5799.55,0.00019178,2]
[375267803,1753608632754,-460.0,0.00019178,2]
[375267804,1753608632764,-387.07869557,0.00019178,2]
[375267805,1753608632773,-460.0,0.00019178,2]
[375267806,1753608632782,-460.0,0.00019178,2]
[375267807,1753608632792,-460.0,0.00019178,2]
[375267808,1753608632801,-460.0,0.00019178,2]
[375267809,1753608632811,-348.64166232,0.00019178,2]
[375267810,1753608632824,-300.27047696,0.00019178,2]
[375267811,1753608632834,-331.66103873,0.00019178,2]
[375267812,1753608632847,-132.63962904,0.00019178,2]
[375267813,1753608632858,-456.0,0.00019178,2]
[375267814,1753608632867,-460.0,0.00019178,2]
[375267815,1753608632876,-460.0,0.00019178,2]
[375267816,1753608632886,-461.9334455,0.00019178,2]
[375267817,1753608632897,-460.0,0.00019178,2]
[375267818,1753608632907,-460.85848333,0.00019178,2]
[375267819,1753608632919,-460.0,0.00019178,2]
[375267820,1753608632928,-328.2778318,0.00019178,2]
[375267822,1753608632940,-131.7221682,0.00019178,2]
[375267824,1753608632951,-460.0,0.00019178,2]
[375267826,1753608632960,-460.0,0.00019178,2]
[375267828,1753608632970,-460.0,0.00019178,2]
[375267830,1753608632980,-460.0,0.00019178,2]
[375267832,1753608632990,-268.59766604,0.00019178,2]
[375267834,1753608632999,-559.18580524,0.00019178,2]
[375267836,1753608633009,-420.28837773,0.00019178,2]
[375267838,1753608633019,-460.0,0.00019178,2]
[375267839,1753608633029,-460.0,0.00019178,2]
[375267840,1753608633039,-460.0,0.00019178,2]
[375267841,1753608633050,-1541.98,0.00019178,2]
[375267842,1753608633060,-460.0,0.00019178,2]
[375267843,1753608633069,-215.2075432,0.00019178,2]
[375267844,1753608633078,-460.0,0.00019178,2]
[375267845,1753608633089,-460.0,0.00019178,2]
[375267846,1753608633098,-460.0,0.00019178,2]
[375267847,1753608633108,-460.0,0.00019178,2]
[375267848,1753608633118,-460.0,0.00019178,2]
[375267849,1753608633128,-460.0,0.00019178,2]
[375267850,1753608633139,-460.0,0.00019178,2]
[375267851,1753608633149,-460.0,0.00019178,2]
[375267852,1753608633159,-460.0,0.00019178,2]
[375267853,1753608633171,-460.0,0.00019178,2]
[375267854,1753608633181,-460.0,0.00019178,2]
[375267855,1753608633191,-460.0,0.00019178,2]
[375267856,1753608633201,-460.0,0.00019178,2]
[375267857,1753608633212,-314.07031185,0.00019178,2]
[375267858,1753608633226,-145.92968815,0.00019178,2]
[375267859,1753608633236,-147.64603189,0.00019178,2]
[375267860,1753608633253,-353.95396811,0.00019178,2]
[375267861,1753608633263,-464.84625056,0.00019178,2]
[375267862,1753608633273,-463.07802104,0.00019178,2]
[375267863,1753608633282,-616.93,0.00019178,2]
[375267864,1753608633292,-460.0,0.00019178,2]
[375267865,1753608633301,-460.0,0.00019178,2]
[375267866,1753608633311,-466.16052114,0.00019178,2]
[375267867,1753608633321,-460.0,0.00019178,2]
[375267868,1753608633331,-460.0,0.00019178,2]
[375267869,1753608633341,-460.0,0.00019178,2]
[375267870,1753608633351,-460.0,0.00019178,2]
[375267871,1753608633361,-273.50870646,0.00019178,2]
[375267872,1753608633371,-460.0,0.00019178,2]
[375267873,1753608633381,-167.10270223,0.00019178,2]
[375267874,1753608633393,-292.89729777,0.00019178,2]
[375267875,1753608633403,-406.8929093,0.00019178,2]
[375267886,1753608638216,-53.1070907,0.00019178,2]
[375267887,1753608638226,-460.0,0.00019178,2]
[375267888,1753608638236,-460.0,0.00019178,2]
[375267889,1753608638245,-460.0,0.00019178,2]
[375267890,1753608638254,-460.0,0.00019178,2]
[375267891,1753608638263,-460.0,0.00019178,2]
[375267892,1753608638273,-478.39192347,0.00019178,2]
[375267893,1753608638282,-460.0,0.00019178,2]
[375267894,1753608638291,-460.0,0.00019178,2]
[375267895,1753608638301,-460.0,0.00019178,2]
[375267896,1753608638310,-460.0,0.00019178,2]
[375267897,1753608638319,-460.0,0.00019178,2]
[375267898,1753608638329,-460.0,0.00019178,2]
[375267899,1753608638338,-460.0,0.00019178,2]
[375267900,1753608638347,-460.0,0.00019178,2]
[375267901,1753608638356,-460.0,0.00019178,2]
[375267902,1753608638365,-460.0,0.00019178,2]
[375267903,1753608638374,-460.0,0.00019178,2]
[375267904,1753608638383,-460.0,0.00019178,2]
[375267905,1753608638392,-151.0,0.00019178,2]
[375267906,1753608638401,-460.0,0.00019178,2]
[375267907,1753608638410,-151.53812668,0.00019178,2]
[375267908,1753608638420,-460.0,0.00019178,2]
[375267909,1753608638429,-151.0,0.00019178,2]
[375267910,1753608638438,-460.0,0.00019178,2]
[375267911,1753608638447,-265.40365917,0.00019178,2]
[375267912,1753608638457,-151.0,0.00019178,2]
[375267913,1753608638466,-460.0,0.00019178,2]
[375267914,1753608638475,-745.65,0.00019178,2]
[375267915,1753608638484,-460.0,0.00019178,2]
[375267916,1753608638494,-460.0,0.00019178,2]
[375267917,1753608638503,-168.62155515,0.00019178,2]
[375267918,1753608638512,-2101.8,0.00019178,2]
[375267919,1753608638522,-460.0,0.00019178,2]
[375267920,1753608638531,-460.0,0.00019178,2]
[375267921,1753608638540,-460.0,0.00019178,2]
[375267922,1753608638550,-460.0,0.00019178,2]
[375267923,1753608638559,-460.0,0.00019178,2]
[375267924,1753608638568,-460.0,0.00019178,2]
[375267925,1753608638578,-857.06,0.00019178,2]
[375267926,1753608638587,-515.6,0.00019178,2]
[375267927,1753608638596,-460.0,0.00019178,2]
[375267928,1753608638605,-460.0,0.00019178,2]
[375267929,1753608638615,-460.0,0.00019178,2]
[375267930,1753608638624,-460.0,0.00019178,2]
[375267931,1753608638633,-460.0,0.00019178,2]
[375267932,1753608638642,-460.0,0.00019178,2]
[375267933,1753608638651,-460.0,0.00019178,2]
[375267934,1753608638660,-460.0,0.00019178,2]
[375267935,1753608638669,-460.0,0.00019178,2]
[375267936,1753608638678,-976.06,0.00019178,2]
[375267937,1753608638688,-151.0,0.00019178,2]
[375267938,1753608638698,-460.0,0.00019178,2]
[375267939,1753608638707,-507.0,0.00019178,2]
[375267940,1753608638717,-460.0,0.00019178,2]
[375267941,1753608638726,-460.0,0.00019178,2]
[375267942,1753608638736,-460.0,0.00019178,2]
[375267943,1753608638745,-500.0,0.00019178,2]
[375267944,1753608638755,-151.0,0.00019178,2]
[375267945,1753608638764,-460.0,0.00019178,2]
[375267946,1753608638773,-460.0,0.00019178,2]
[375267947,1753608638783,-460.0,0.00019178,2]
[375267948,1753608638792,-151.0,0.00019178,2]
[375267949,1753608638802,-500.0,0.00019178,2]
[375267950,1753608638810,-460.0,0.00019178,2]
[375267951,1753608638825,-460.0,0.00019178,2]
[375267952,1753608638834,-460.0,0.00019178,2]
[375267953,1753608638843,-460.0,0.00019178,2]
[375267954,1753608638853,-151.0,0.00019178,2]
[375267955,1753608638863,-151.0,0.00019178,2]
[375267956,1753608638872,-151.0,0.00019178,2]
[375267957,1753608638881,-460.0,0.00019178,2]
[375267958,1753608638890,-151.0,0.00019178,2]
[375267959,1753608638899,-151.0,0.00019178,2]
[375267960,1753608638909,-151.0,0.00019178,2]
[375267961,1753608638917,-460.0,0.00019178,2]
[375267962,1753608638927,-2419.46,0.00019178,2]
[375267963,1753608638937,-592.80795498,0.00019178,2]
[375267964,1753608638947,-460.0,0.00019178,2]
[375267965,1753608638956,-460.0,0.00019178,2]
[375267966,1753608638966,-460.0,0.00019178,2]
[375267967,1753608638975,-460.0,0.00019178,2]
[375267968,1753608638984,-460.0,0.00019178,2]
[375267969,1753608638993,-460.0,0.00019178,2]
[375267970,1753608639003,-460.0,0.00019178,2]
[375267971,1753608639012,-460.0,0.00019178,2]
[375267972,1753608639022,-460.0,0.00019178,2]
[375267973,1753608639031,-460.0,0.00019178,2]
[375267974,1753608639041,-460.0,0.00019178,2]
[375267975,1753608639050,-460.0,0.00019178,2]
[375267976,1753608639060,-460.0,0.00019178,2]
[375267977,1753608639069,-460.0,0.00019178,2]
[375267978,1753608639078,-460.0,0.00019178,2]
[375267979,1753608639087,-202.07786949,0.00019178,2]
[375267980,1753608639096,-463.50949792,0.00019178,2]
[375267981,1753608639106,-460.0,0.00019178,2]
[375267982,1753608639115,-460.0,0.00019178,2]
[375267983,1753608639124,-500.0,0.00019178,2]
[375267984,1753608639133,-460.0,0.00019178,2]
[375267985,1753608639143,-460.0,0.00019178,2]
[375267986,1753608639153,-460.0,0.00019178,2]
[375267987,1753608639162,-460.0,0.00019178,2]
[375267988,1753608639172,-460.0,0.00019178,2]
[375267989,1753608639181,-460.0,0.00019178,2]
[375267990,1753608639190,-460.0,0.00019178,2]
[375267991,1753608639200,-460.0,0.00019178,2]
[375267992,1753608639210,-460.0,0.00019178,2]
[375267993,1753608639219,-2581.58,0.00019178,2]
[375267994,1753608639228,-460.0,0.00019178,2]
[375267995,1753608639238,-460.0,0.00019178,2]
[375267996,1753608639248,-218.88615379,0.00019178,2]
[375267997,1753608639257,-460.0,0.00019178,2]
[375267998,1753608639267,-421.53009683,0.00019178,2]
[375267999,1753608639276,-446.6465627,0.00019178,2]
[375268000,1753608639285,-460.0,0.00019178,2]
[375268001,1753608639295,-460.0,0.00019178,2]
[375268002,1753608639304,-958.87,0.00019178,2]
[375268003,1753608639313,-462.66835996,0.00019178,2]
[375268004,1753608639322,-460.0,0.00019178,2]
[375268005,1753608639332,-564.69771267,0.00019178,2]
[375268006,1753608639342,-457.75126319,0.00019178,2]
[375268007,1753608639351,-733.1,0.00019178,2]
[375268008,1753608639361,-460.0,0.00019178,2]
[375268009,1753608639371,-460.0,0.00019178,2]
[375268010,1753608639381,-460.0,0.00019178,2]
[375268011,1753608639390,-460.0,0.00019178,2]
[375268012,1753608639399,-748.61,0.00019178,2]
[375268013,1753608639409,-460.0,0.00019178,2]
[375268014,1753608639419,-460.0,0.00019178,2]
[375268015,1753608639428,-460.0,0.00019178,2]
[375268016,1753608639438,-774.4,0.00019178,2]
[375268017,1753608639448,-460.0,0.00019178,2]
[375268018,1753608639458,-460.0,0.00019178,2]
[375268019,1753608639468,-463.88084968,0.00019178,2]
[375268020,1753608639477,-460.0,0.00019178,2]
[375268021,1753608639487,-460.0,0.00019178,2]
[375268022,1753608639496,-460.0,0.00019178,2]
[375268023,1753608639506,-529.57106144,0.00019178,2]
[375268024,1753608639515,-460.0,0.00019178,2]
[375268025,1753608639526,-500.0,0.00019178,2]
[375268026,1753608639536,-460.0,0.00019178,2]
[375268027,1753608639547,-460.0,0.00019178,2]
[375268028,1753608639556,-460.0,0.00019178,2]
[375268029,1753608639566,-460.0,0.00019178,2]
[375268030,1753608639575,-460.0,0.00019178,2]
[375268031,1753608639585,-151.0,0.00019178,2]
[375268032,1753608639594,-460.0,0.00019178,2]
[375268033,1753608639604,-460.0,0.00019178,2]
[375268034,1753608639613,-500.0,0.00019178,2]
[375268035,1753608639623,-460.0,0.00019178,2]
[375268036,1753608639633,-460.0,0.00019178,2]
[375268037,1753608639642,-460.0,0.00019178,2]
[375268038,1753608639651,-602.41153146,0.00019178,2]
[375268039,1753608639661,-460.0,0.00019178,2]
[375268040,1753608639670,-460.0,0.00019178,2]
[375268041,1753608639680,-460.0,0.00019178,2]
[375268042,1753608639689,-460.0,0.00019178,2]
[375268043,1753608639699,-554.86392147,0.00019178,2]
[375268044,1753608639708,-246.5592993,0.00019178,2]
[375268045,1753608639717,-460.0,0.00019178,2]
[375268046,1753608639727,-460.0,0.00019178,2]
[375268047,1753608639736,-460.0,0.00019178,2]
[375268048,1753608639746,-460.0,0.00019178,2]
[375268049,1753608639756,-2220.55,0.00019178,2]
[375268050,1753608639765,-460.0,0.00019178,2]
[375268051,1753608639775,-460.0,0.00019178,2]
[375268052,1753608639784,-460.0,0.00019178,2]
[375268053,1753608639794,-460.0,0.00019178,2]
[375268054,1753608639803,-460.0,0.00019178,2]
[375268055,1753608639815,-500.0,0.00019178,2]
[375268056,1753608639826,-151.4272048,0.00019178,2]
[375268057,1753608639835,-151.0,0.00019178,2]
[375268058,1753608639846,-500.0,0.00019178,2]
[375268059,1753608639855,-151.0,0.00019178,2]
[375268060,1753608639865,-500.0,0.00019178,2]
[375268061,1753608639875,-500.0,0.00019178,2]
[375268062,1753608639884,-462.91551724,0.00019178,2]
[375268063,1753608639894,-460.0,0.00019178,2]
[375268064,1753608639903,-460.0,0.00019178,2]
[375268065,1753608639913,-151.0,0.00019178,2]
[375268066,1753608639922,-151.0,0.00019178,2]
[375268067,1753608639932,-645.66,0.00019178,2]
[375268068,1753608639943,-2205.59,0.00019178,2]
[375268069,1753608639953,-460.0,0.00019178,2]
[375268070,1753608639963,-463.8,0.00019178,2]
[375268071,1753608639972,-460.0,0.00019178,2]
[375268072,1753608639983,-661.06,0.00019178,2]
[375268073,1753608639993,-3631.53,0.00019178,2]
[375268074,1753608640003,-1789.75,0.00019178,2]
[375268075,1753608640013,-976.08,0.00019178,2]
[375268076,1753608640023,-460.0,0.00019178,2]
[375268077,1753608640032,-1234.22,0.00019178,2]
[375268078,1753608640043,-460.0,0.00019178,2]
[375268079,1753608640053,-460.0,0.00019178,2]
[375268080,1753608640063,-460.0,0.00019178,2]
[375268081,1753608640073,-460.0,0.00019178,2]
[375268082,1753608640083,-477.79821155,0.00019178,2]
[375268083,1753608640093,-460.0,0.00019178,2]
[375268084,1753608640103,-460.0,0.00019178,2]
[375268085,1753608640113,-520.23,0.00019178,2]
[375268086,1753608640122,-473.24765745,0.00019178,2]
[375268087,1753608640132,-460.0,0.00019178,2]
[375268088,1753608640142,-460.0,0.00019178,2]
[375268089,1753608640151,-460.0,0.00019178,2]
[375268090,1753608640161,-1943.08,0.00019178,2]
[375268091,1753608640171,-460.0,0.00019178,2]
[375268092,1753608640182,-460.0,0.00019178,2]
[375268093,1753608640192,-460.0,0.00019178,2]
[375268094,1753608640304,-460.0,0.00019178,2]
[375268095,1753608640314,-460.0,0.00019178,2]
[375268096,1753608640323,-802.08,0.00019178,2]
[375268097,1753608640333,-2921.44,0.00019178,2]
[375268098,1753608640343,-460.0,0.00019178,2]
[375268099,1753608640352,-460.0,0.00019178,2]
[375268100,1753608640362,-460.0,0.00019178,2]
[375268101,1753608640371,-460.0,0.00019178,2]
[375268102,1753608640380,-460.0,0.00019178,2]
[375268103,1753608640391,-460.0,0.00019178,2]
[375268104,1753608640401,-460.0,0.00019178,2]
[375268105,1753608640410,-460.0,0.00019178,2]
[375268106,1753608640419,-980.48,0.00019178,2]
[375268107,1753608640429,-460.0,0.00019178,2]
[375268108,1753608640439,-460.0,0.00019178,2]
[375268109,1753608640448,-460.0,0.00019178,2]
[375268110,1753608640458,-460.0,0.00019178,2]
[375268111,1753608640467,-698.86,0.00019178,2]
[375268112,1753608640477,-485.5,0.00019178,2]
[375268113,1753608640486,-460.0,0.00019178,2]
[375268114,1753608640496,-460.0,0.00019178,2]
[375268115,1753608640506,-460.0,0.00019178,2]
[375268116,1753608640515,-500.0,0.00019178,2]
[375268117,1753608640526,-495.7940687,0.00019178,2]
[375268118,1753608640536,-459.59806917,0.00019178,2]
[375268119,1753608640546,-460.0,0.00019178,2]
[375268121,1753608640556,-2017.36,0.00019178,2]
[375268122,1753608640566,-460.0,0.00019178,2]
[375268124,1753608640576,-460.0,0.00019178,2]
[375268126,1753608640586,-665.71,0.00019178,2]
[375268127,1753608640596,-151.0,0.00019178,2]
[375268129,1753608640606,-460.0,0.00019178,2]
[375268130,1753608640616,-151.0,0.00019178,2]
[375268131,1753608640625,-151.15841428,0.00019178,2]
[375268132,1753608640635,-460.0,0.00019178,2]
[375268134,1753608640644,-460.0,0.00019178,2]
[375268135,1753608640654,-151.0,0.00019178,2]
[375268136,1753608640664,-151.0,0.00019178,2]
[375268137,1753608640673,-460.0,0.00019178,2]
[375268138,1753608640683,-500.0,0.00019178,2]
[375268139,1753608640692,-460.0,0.00019178,2]
[375268140,1753608640702,-765.13,0.00019178,2]
[375268141,1753608640711,-500.0,0.00019178,2]
[375268142,1753608640721,-151.0,0.00019178,2]
[375268143,1753608640731,-464.41029297,0.00019178,2]
[375268144,1753608640740,-500.0,0.00019178,2]
[375268145,1753608640750,-460.0,0.00019178,2]
[375268146,1753608640760,-460.0,0.00019178,2]
[375268147,1753608640769,-5689.3,0.00019178,2]
[375268148,1753608640780,-460.0,0.00019178,2]
[375268149,1753608640789,-460.0,0.00019178,2]
[375268150,1753608640800,-664.27,0.00019178,2]
[375268151,1753608640809,-460.0,0.00019178,2]
[375268152,1753608640822,-460.0,0.00019178,2]
[375268153,1753608640832,-460.0,0.00019178,2]
[375268154,1753608640842,-460.0,0.00019178,2]
[375268155,1753608640852,-460.0,0.00019178,2]
[375268156,1753608640863,-460.0,0.00019178,2]
[375268157,1753608640873,-2364.21,0.00019178,2]
[375268158,1753608640883,-460.0,0.00019178,2]
[375268159,1753608640894,-460.0,0.00019178,2]
[375268160,1753608640905,-943.94,0.00019178,2]
[375268161,1753608640915,-460.0,0.00019178,2]
[375268162,1753608640925,-460.0,0.00019178,2]